[Event "European Online Club-ch-D 2021"]
[Site "Online"]
[Date "2021.03.27"]
[Round "3.11"]
[White "Petkidis, Anthony"]
[Black "Pascual Palomo, Lucia"]
[Result "1-0"]
[ECO "C02"]
[WhiteElo "2401"]
[BlackElo "2101"]
[Annotator "NA"]
[PlyCount "79"]
[EventDate "2021.03.27"]
[EventType "team-tourn"]
[EventCountry "NET"]
[SourceTitle "playchess.com"]
[Source "ChessBase"]
[SourceQuality "1"]
[TimeControl "900+5"]

1. e4 {[%emt 0:00:00]} e6 {[%emt 0:00:05]} 2. d4 {[%emt 0:00:08]} d5 {[%emt 0:00:09]} 3. e5 {[%emt 0:00:11]} c5 {[%emt 0:00:04]} 4. c3 {[%emt 0:00:02]} Nc6 {[%emt 0:00:04]} 5. Nf3 {[%emt 0:00:03]} Bd7 {[%emt 0:00:02]} 6. Be2 {[%emt 0:00:06]} cxd4 {[%emt 0:00:09]} 7. cxd4 {[%emt 0:00:02]} Nh6 {[%emt 0:00:02]} 8. Bxh6 {[%emt 0:01:10]} gxh6 {[%emt 0:00:08]} 9. O-O {[%emt 0:00:02]} Bg7 {[%emt 0:00:05]} 10. Nc3 {[%emt 0:00:59]} a6 {[%emt 0:00:19]} 11. Na4 {[%emt 0:00:38]} O-O {[%emt 0:00:04]} 12. Nc5 {[%emt 0:00:42]} Rb8 {[%emt 0:02:08]} 13. Rc1 {[%emt 0:00:17]} f6 {[%emt 0:00:18]} 14. exf6 {[%emt 0:00:14]} Bxf6 {[%emt 0:00:12]} 15. Qd2 {[%emt 0:00:16]} Bg7 {[%emt 0:00:10]} 16. Qe3 {[%emt 0:00:38]} Qe7 {[%emt 0:01:19]} 17. Ne5 {[%emt 0:01:26]} Nxe5 {[%emt 0:00:54]} 18. dxe5 {[%emt 0:00:05]} Rf5 {[%emt 0:00:25]} 19. f4 {[%emt 0:00:07]} h5 {[%emt 0:00:40]} 20. Bd3 {[%emt 0:01:11]} Rff8 {[%emt 0:00:31]} 21. Qh3 {[%emt 0:00:24]} h4 {[%emt 0:00:28]} 22. Nxd7 {[%emt 0:00:47]} Qxd7 {[%emt 0:00:05]} 23. Qxh4 {[%emt 0:00:01]} Bh8 {[%emt 0:00:16]} 24. Rf3 {[%emt 0:00:08]} Rf7 {[%emt 0:00:16]} 25. Qh6 {[%emt 0:00:44]} Rg7 {[%emt 0:00:22]} 26. Rh3 {[%emt 0:00:24]} Rf8 {[%emt 0:01:20]} 27. Rf1 {[%emt 0:00:05]} Qe7 {[%emt 0:00:10]} 28. Kh1 {[%emt 0:00:06]} Rff7 {[%emt 0:00:25]} 29. a3 {[%emt 0:00:07]} Rg4 {[%emt 0:00:22]} 30. Rff3 {[%emt 0:00:42]} Rfg7 {[%emt 0:00:30]} 31. Rfg3 {[%emt 0:00:35]} Rxg3 {[%emt 0:00:24]} 32. hxg3 {[%emt 0:00:03]} b5 {[%emt 0:00:23]} 33. g4 {[%emt 0:00:03]} Rf7 {[%emt 0:00:50]} 34. g5 {[%emt 0:00:49]} Qc7 {[%emt 0:01:11]} 35. Rh4 {[%emt 0:03:52]} Qc1+ {[%emt 0:01:44]} 36. Kh2 {[%emt 0:00:03]} Bg7 {[%emt 0:00:03]} 37. Qxe6 {[%emt 0:00:08]} Kf8 {[%emt 0:00:28]} 38. Qd6+ {[%emt 0:00:04]} Ke8 {[%emt 0:00:11]} 39. e6 {[%emt 0:00:04]} Re7 {[%emt 0:00:13]} 40. Qb8+ {[%emt 0:00:03]} 1-0

[Event "European Online Club-ch-D 2021"]
[Site "Online"]
[Date "2021.03.27"]
[Round "3.12"]
[White "Blasco De La Cruz, Luis"]
[Black "Fischer, Daniel"]
[Result "0-1"]
[ECO "A31"]
[WhiteElo "1902"]
[BlackElo "2276"]
[Annotator "NA"]
[PlyCount "138"]
[EventDate "2021.03.27"]
[EventType "team-tourn"]
[EventCountry "NET"]
[SourceTitle "playchess.com"]
[Source "ChessBase"]
[SourceQuality "1"]
[TimeControl "900+5"]

1. e4 {[%emt 0:00:00]} c5 {[%emt 0:00:02]} 2. Nf3 {[%emt 0:00:13]} e6 {[%emt 0:00:02]} 3. c4 {[%emt 0:00:03]} a6 {[%emt 0:00:06]} 4. Nc3 {[%emt 0:00:02]} d6 {[%emt 0:00:50]} 5. Be2 {[%emt 0:00:15]} Nf6 {[%emt 0:00:04]} 6. d4 {[%emt 0:00:09]} cxd4 {[%emt 0:00:02]} 7. Nxd4 {[%emt 0:00:02]} Qc7 {[%emt 0:00:14]} 8. O-O {[%emt 0:00:14]} Nbd7 {[%emt 0:00:02]} 9. Be3 {[%emt 0:00:09]} b6 {[%emt 0:00:12]} 10. Rc1 {[%emt 0:00:10]} Bb7 {[%emt 0:00:02]} 11. f3 {[%emt 0:00:03]} Be7 {[%emt 0:00:02]} 12. Qd2 {[%emt 0:00:06]} O-O {[%emt 0:00:07]} 13. Rfd1 {[%emt 0:00:04]} Rac8 {[%emt 0:00:12]} 14. Bf1 {[%emt 0:01:01]} Qb8 {[%emt 0:00:25]} 15. Nc2 {[%emt 0:01:30]} Bd8 {[%emt 0:01:22]} 16. Bf4 {[%emt 0:00:36]} Ne5 {[%emt 0:00:27]} 17. Ne3 {[%emt 0:02:24]} Bc7 {[%emt 0:00:17]} 18. h3 {[%emt 0:04:12]} Rfd8 {[%emt 0:03:22]} 19. Qe1 {[%emt 0:00:44]} d5 {[%emt 0:01:36]} 20. Bxe5 {[%emt 0:00:15]} Bxe5 {[%emt 0:00:05]} 21. cxd5 {[%emt 0:00:05]} Bh2+ {[%emt 0:00:28]} 22. Kh1 {[%emt 0:00:10]} Nh5 {[%emt 0:00:12]} 23. Ng4 {[%emt 0:01:32]} Bg3 {[%emt 0:00:32]} 24. Nf2 {[%emt 0:01:09]} exd5 {[%emt 0:01:53]} 25. Nxd5 {[%emt 0:00:41]} Rxc1 {[%emt 0:00:22]} 26. Rxc1 {[%emt 0:00:18]} Bxd5 {[%emt 0:00:33]} 27. exd5 {[%emt 0:00:11]} Re8 {[%emt 0:00:23]} 28. Qd2 {[%emt 0:00:28]} Bf4 {[%emt 0:00:05]} 29. Qc2 {[%emt 0:00:05]} Bxc1 {[%emt 0:00:06]} 30. Qxc1 {[%emt 0:00:00]} Ng3+ {[%emt 0:00:07]} 31. Kg1 {[%emt 0:00:03]} Nxf1 {[%emt 0:00:05]} 32. Kxf1 {[%emt 0:00:30]} Qe5 {[%emt 0:00:18]} 33. Qd2 {[%emt 0:00:08]} Rd8 {[%emt 0:00:04]} 34. Qe2 {[%emt 0:00:07]} Qxe2+ {[%emt 0:00:05]} 35. Kxe2 {[%emt 0:00:00]} Rxd5 {[%emt 0:00:01]} 36. Nd3 {[%emt 0:00:03]} a5 {[%emt 0:00:06]} 37. h4 {[%emt 0:00:10]} Kf8 {[%emt 0:00:04]} 38. Ke3 {[%emt 0:00:03]} Ke7 {[%emt 0:00:03]} 39. Ke4 {[%emt 0:00:01]} Kd6 {[%emt 0:00:10]} 40. b3 {[%emt 0:00:06]} a4 {[%emt 0:00:44]} 41. g4 {[%emt 0:00:09]} axb3 {[%emt 0:00:21]} 42. axb3 {[%emt 0:00:00]} Rb5 {[%emt 0:00:01]} 43. b4 {[%emt 0:00:03]} Rd5 {[%emt 0:00:18]} 44. Ke3 {[%emt 0:00:11]} Kc6 {[%emt 0:00:49]} 45. Ke4 {[%emt 0:00:08]} f6 {[%emt 0:00:11]} 46. f4 {[%emt 0:00:06]} Rd7 {[%emt 0:00:06]} 47. g5 {[%emt 0:00:05]} Kb5 {[%emt 0:00:05]} 48. gxf6 {[%emt 0:00:06]} gxf6 {[%emt 0:00:00]} 49. h5 {[%emt 0:00:03]} Rxd3 {[%emt 0:00:06]} 50. Kxd3 {[%emt 0:00:02]} Kxb4 {[%emt 0:00:00]} 51. Kd4 {[%emt 0:00:02]} b5 {[%emt 0:00:02]} 52. Ke4 {[%emt 0:00:02]} Kc3 {[%emt 0:00:04]} 53. Kf5 {[%emt 0:00:00]} b4 {[%emt 0:00:01]} 54. Kxf6 {[%emt 0:00:01]} b3 {[%emt 0:00:00]} 55. Kg7 {[%emt 0:00:20]} b2 {[%emt 0:00:02]} 56. f5 {[%emt 0:00:01]} b1=Q {[%emt 0:00:04]} 57. f6 {[%emt 0:00:01]} Qg1+ {[%emt 0:00:30]} 58. Kxh7 {[%emt 0:00:10]} Qf2 {[%emt 0:00:07]} 59. Kg6 {[%emt 0:00:15]} Qg3+ {[%emt 0:00:02]} 60. Kh7 {[%emt 0:00:04]} Qf4 {[%emt 0:00:04]} 61. Kg7 {[%emt 0:00:05]} Qg5+ {[%emt 0:00:06]} 62. Kf7 {[%emt 0:00:04]} Qxh5+ {[%emt 0:00:03]} 63. Ke7 {[%emt 0:00:04]} Qe5+ {[%emt 0:00:04]} 64. Kf7 {[%emt 0:00:01]} Kd4 {[%emt 0:00:02]} 65. Kg6 {[%emt 0:00:01]} Qe6 {[%emt 0:00:01]} 66. Kg7 {[%emt 0:00:02]} Qg4+ {[%emt 0:00:02]} 67. Kh6 {[%emt 0:00:10]} Qf5 {[%emt 0:00:07]} 68. Kg7 {[%emt 0:00:04]} Qg5+ {[%emt 0:00:01]} 69. Kf7 {[%emt 0:00:01]} Ke5 {[%emt 0:00:02]} 0-1

[Event "European Online Club-ch-D 2021"]
[Site "Online"]
[Date "2021.03.27"]
[Round "3.13"]
[White "Gadimbayli, Abdulla"]
[Black "Reimanis, Ritvars"]
[Result "1-0"]
[ECO "B31"]
[WhiteElo "2470"]
[BlackElo "2412"]
[Annotator "ChessBase"]
[PlyCount "157"]
[EventDate "2021.03.27"]
[EventType "team-tourn"]
[EventCountry "NET"]
[SourceTitle "playchess.com"]
[Source "ChessBase"]
[SourceQuality "1"]
[TimeControl "900+5"]

1. e4 {[%emt 0:00:00]} c5 {[%emt 0:00:03]} 2. Nf3 {[%emt 0:00:03]} Nc6 {[%emt 0:00:03]} 3. Bb5 {[%emt 0:00:02]} g6 {[%emt 0:00:01]} 4. Bxc6 {[%emt 0:00:02]} bxc6 {[%emt 0:00:02]} 5. d4 {[%emt 0:00:01]} Bg7 {[%emt 0:00:01]} 6. dxc5 {[%emt 0:00:02]} Qa5+ {[%emt 0:00:03]} 7. Nbd2 {[%emt 0:00:05]} Ba6 {[%emt 0:00:06]} 8. Rb1 {[%emt 0:00:02]} Qxc5 {[%emt 0:01:19]} 9. b4 {[%emt 0:00:03]} Qh5 {[%emt 0:00:09]} 10. c4 {[%emt 0:00:06]} g5 {[%emt 0:00:58]} 11. O-O {[%emt 0:02:22]} g4 {[%emt 0:00:09]} 12. Ne1 {[%emt 0:00:04]} Nf6 {[%emt 0:00:50]} 13. Nd3 {[%emt 0:04:36]} g3 {[%emt 0:03:35]} 14. Qxh5 {[%emt 0:03:48]} gxf2+ {[%emt 0:00:04]} 15. Kxf2 {[%emt 0:00:50]} Nxh5 {[%emt 0:00:03]} 16. e5 {[%emt 0:00:21]} Bh6 {[%emt 0:01:10]} 17. Nc5 {[%emt 0:00:31]} Bc8 {[%emt 0:01:29]} 18. Nde4 {[%emt 0:00:26]} Bxc1 {[%emt 0:00:44]} 19. Rbxc1 {[%emt 0:00:01]} Rb8 {[%emt 0:00:03]} 20. Rb1 {[%emt 0:00:27]} Nf4 {[%emt 0:01:04]} 21. g3 {[%emt 0:00:06]} Ng6 {[%emt 0:00:03]} 22. Nd3 {[%emt 0:00:02]} Ba6 {[%emt 0:01:36]} 23. Rbc1 {[%emt 0:00:03]} f6 {[%emt 0:00:23]} 24. Nec5 {[%emt 0:01:16]} Bc8 {[%emt 0:00:09]} 25. exf6 {[%emt 0:00:02]} Rf8 {[%emt 0:01:48]} 26. Ke3 {[%emt 0:00:05]} Rxf6 {[%emt 0:00:02]} 27. Rxf6 {[%emt 0:00:38]} exf6 {[%emt 0:00:02]} 28. Kd4 {[%emt 0:00:32]} f5 {[%emt 0:00:16]} 29. Re1+ {[%emt 0:00:17]} Kf7 {[%emt 0:00:01]} 30. Rf1 {[%emt 0:00:10]} d6 {[%emt 0:00:08]} 31. Ne4 {[%emt 0:00:07]} Ke7 {[%emt 0:00:01]} 32. Ng5 {[%emt 0:00:06]} h6 {[%emt 0:00:06]} 33. Nh3 {[%emt 0:00:02]} Be6 {[%emt 0:00:22]} 34. a3 {[%emt 0:00:18]} a5 {[%emt 0:00:37]} 35. Nhf4 {[%emt 0:00:10]} Nxf4 {[%emt 0:00:03]} 36. Nxf4 {[%emt 0:00:05]} Bf7 {[%emt 0:00:02]} 37. Nd3 {[%emt 0:00:05]} axb4 {[%emt 0:00:14]} 38. axb4 {[%emt 0:00:02]} Be6 {[%emt 0:00:02]} 39. Ra1 {[%emt 0:00:02]} Rd8 {[%emt 0:00:06]} 40. Ra7+ {[%emt 0:00:04]} Kf6 {[%emt 0:00:01]} 41. Kc3 {[%emt 0:00:10]} d5 {[%emt 0:00:12]} 42. c5 {[%emt 0:00:08]} d4+ {[%emt 0:00:02]} 43. Kd2 {[%emt 0:00:01]} Bc4 {[%emt 0:00:02]} 44. Rh7 {[%emt 0:00:06]} Ra8 {[%emt 0:00:09]} 45. Nb2 {[%emt 0:00:07]} Bf7 {[%emt 0:00:14]} 46. Rxh6+ {[%emt 0:00:03]} Bg6 {[%emt 0:00:01]} 47. Rh4 {[%emt 0:00:02]} Ke5 {[%emt 0:00:00]} 48. Nc4+ {[%emt 0:00:02]} Kf6 {[%emt 0:00:06]} 49. Rxd4 {[%emt 0:00:01]} Ra2+ {[%emt 0:00:01]} 50. Ke3 {[%emt 0:00:01]} Rxh2 {[%emt 0:00:03]} 51. Rd6+ {[%emt 0:00:02]} Kg5 {[%emt 0:00:01]} 52. Ne5 {[%emt 0:00:01]} Bh5 {[%emt 0:00:03]} 53. Rxc6 {[%emt 0:00:16]} Re2+ {[%emt 0:00:06]} 54. Kd4 {[%emt 0:00:01]} Re4+ {[%emt 0:00:01]} 55. Kd5 {[%emt 0:00:01]} Rxb4 {[%emt 0:00:01]} 56. Rc8 {[%emt 0:00:05]} Rb1 {[%emt 0:00:12]} 57. c6 {[%emt 0:00:06]} Kf6 {[%emt 0:00:07]} 58. Rf8+ {[%emt 0:00:14]} Ke7 {[%emt 0:00:02]} 59. Rxf5 {[%emt 0:00:02]} Be8 {[%emt 0:00:11]} 60. g4 {[%emt 0:00:06]} Rd1+ {[%emt 0:00:05]} 61. Kc5 {[%emt 0:00:04]} Rc1+ {[%emt 0:00:08]} 62. Kd5 {[%emt 0:00:19]} Rd1+ {[%emt 0:00:04]} 63. Ke4 {[%emt 0:00:02]} Rc1 {[%emt 0:00:06]} 64. Kf4 {[%emt 0:00:05]} Bxc6 {[%emt 0:00:11]} 65. Rf7+ {[%emt 0:00:01]} Ke6 {[%emt 0:00:07]} 66. Rc7 {[%emt 0:00:02]} Rf1+ {[%emt 0:00:02]} 67. Kg5 {[%emt 0:00:01]} Be4 {[%emt 0:00:10]} 68. Ng6 {[%emt 0:00:03]} Bb1 {[%emt 0:00:07]} 69. Re7+ {[%emt 0:00:04]} Kd6 {[%emt 0:00:01]} 70. Re2 {[%emt 0:00:02]} Rg1 {[%emt 0:00:06]} 71. Nh4 {[%emt 0:00:03]} Bh7 {[%emt 0:00:04]} 72. Nf5+ {[%emt 0:00:03]} Kd5 {[%emt 0:00:04]} 73. Kf6 {[%emt 0:00:03]} Bxf5 {[%emt 0:00:08]} 74. gxf5 {[%emt 0:00:08]} Rf1 {[%emt 0:00:03]} 75. Kg6 {[%emt 0:00:01]} Rg1+ {[%emt 0:00:08]} 76. Kf7 {[%emt 0:00:02]} Ra1 {[%emt 0:00:05]} 77. f6 {[%emt 0:00:02]} Ra7+ {[%emt 0:00:03]} 78. Kg8 {[%emt 0:00:02]} Ra2 {[%emt 0:00:03]} 79. Rxa2 {[%emt 0:00:02]} 1-0

[Event "European Online Club-ch-D 2021"]
[Site "Online"]
[Date "2021.03.27"]
[Round "3.14"]
[White "Kvetny, Mark"]
[Black "Ibrahimli, Murad"]
[Result "0-1"]
[ECO "A46"]
[WhiteElo "2416"]
[BlackElo "2436"]
[Annotator "NA"]
[PlyCount "78"]
[EventDate "2021.03.27"]
[EventType "team-tourn"]
[EventCountry "NET"]
[SourceTitle "playchess.com"]
[Source "ChessBase"]
[SourceQuality "1"]
[TimeControl "900+5"]

1. d4 {[%emt 0:00:00]} Nf6 {[%emt 0:00:03]} 2. Nf3 {[%emt 0:00:10]} e6 {[%emt 0:00:03]} 3. Bf4 {[%emt 0:00:06]} Be7 {[%emt 0:00:07]} 4. Nbd2 {[%emt 0:01:06]} c5 {[%emt 0:00:13]} 5. e3 {[%emt 0:00:03]} Nc6 {[%emt 0:00:07]} 6. c3 {[%emt 0:00:06]} Nh5 {[%emt 0:00:30]} 7. Bg3 {[%emt 0:00:14]} Nxg3 {[%emt 0:00:03]} 8. hxg3 {[%emt 0:00:01]} d5 {[%emt 0:00:22]} 9. Bd3 {[%emt 0:00:11]} h6 {[%emt 0:00:20]} 10. Qe2 {[%emt 0:01:29]} Qb6 {[%emt 0:00:09]} 11. Rb1 {[%emt 0:00:10]} Bd7 {[%emt 0:00:02]} 12. g4 {[%emt 0:02:14]} g5 {[%emt 0:03:28]} 13. g3 {[%emt 0:00:46]} O-O-O {[%emt 0:00:22]} 14. Kf1 {[%emt 0:00:38]} Rdf8 {[%emt 0:00:52]} 15. Kg2 {[%emt 0:01:04]} f5 {[%emt 0:00:04]} 16. dxc5 {[%emt 0:00:03]} Qxc5 {[%emt 0:00:22]} 17. b4 {[%emt 0:00:43]} Qd6 {[%emt 0:00:40]} 18. gxf5 {[%emt 0:00:46]} exf5 {[%emt 0:00:06]} 19. b5 {[%emt 0:00:02]} Ne5 {[%emt 0:00:23]} 20. Nxe5 {[%emt 0:00:09]} Qxe5 {[%emt 0:00:02]} 21. Nf3 {[%emt 0:00:02]} Qf6 {[%emt 0:00:31]} 22. b6 {[%emt 0:00:53]} a6 {[%emt 0:01:40]} 23. Bxa6 {[%emt 0:01:39]} f4 {[%emt 0:00:03]} 24. exf4 {[%emt 0:00:29]} gxf4 {[%emt 0:00:04]} 25. Qe5 {[%emt 0:02:37]} Qxe5 {[%emt 0:01:32]} 26. Nxe5 {[%emt 0:00:03]} bxa6 {[%emt 0:00:38]} 27. Ng6 {[%emt 0:00:32]} f3+ {[%emt 0:00:06]} 28. Kh2 {[%emt 0:00:06]} Bg5 {[%emt 0:00:01]} 29. Nxh8 {[%emt 0:00:21]} Rxh8 {[%emt 0:00:03]} 30. Rhd1 {[%emt 0:00:21]} Bc6 {[%emt 0:00:08]} 31. Rd3 {[%emt 0:00:05]} Rf8 {[%emt 0:00:08]} 32. Re1 {[%emt 0:00:02]} Kb7 {[%emt 0:00:16]} 33. Re6 {[%emt 0:00:08]} a5 {[%emt 0:00:17]} 34. Rd4 {[%emt 0:00:21]} Rf6 {[%emt 0:00:58]} 35. Rxf6 {[%emt 0:00:07]} Bxf6 {[%emt 0:00:02]} 36. Rf4 {[%emt 0:00:01]} Bxc3 {[%emt 0:00:02]} 37. Rxf3 {[%emt 0:00:01]} d4 {[%emt 0:00:01]} 38. Rd3 {[%emt 0:00:08]} Be4 {[%emt 0:00:04]} 39. Rd1 {[%emt 0:00:02]} Bc2 {[%emt 0:00:02]} 0-1

[Event "European Online Club-ch-D 2021"]
[Site "Online"]
[Date "2021.03.27"]
[Round "3.15"]
[White "Eynullayev, Atilla"]
[Black "Maciol, Ryszard"]
[Result "1-0"]
[ECO "C02"]
[WhiteElo "2347"]
[BlackElo "2154"]
[Annotator "NA"]
[PlyCount "67"]
[EventDate "2021.03.27"]
[EventType "team-tourn"]
[EventCountry "NET"]
[SourceTitle "playchess.com"]
[Source "ChessBase"]
[SourceQuality "1"]
[TimeControl "900+5"]

1. e4 {[%emt 0:00:00]} e6 {[%emt 0:00:03]} 2. d4 {[%emt 0:00:03]} d5 {[%emt 0:00:02]} 3. e5 {[%emt 0:00:01]} c5 {[%emt 0:00:02]} 4. c3 {[%emt 0:00:01]} Qb6 {[%emt 0:00:02]} 5. Nf3 {[%emt 0:00:04]} Nc6 {[%emt 0:00:04]} 6. a3 {[%emt 0:00:02]} Nh6 {[%emt 0:00:04]} 7. b4 {[%emt 0:00:02]} cxd4 {[%emt 0:00:02]} 8. b5 {[%emt 0:00:01]} Na5 {[%emt 0:00:46]} 9. Bxh6 {[%emt 0:00:03]} gxh6 {[%emt 0:00:36]} 10. cxd4 {[%emt 0:00:01]} Bd7 {[%emt 0:00:50]} 11. Nbd2 {[%emt 0:00:02]} Bg7 {[%emt 0:00:25]} 12. Bd3 {[%emt 0:00:33]} Rc8 {[%emt 0:00:30]} 13. a4 {[%emt 0:00:37]} Nc4 {[%emt 0:00:18]} 14. Bxc4 {[%emt 0:00:50]} dxc4 {[%emt 0:00:04]} 15. Ne4 {[%emt 0:00:03]} Qa5+ {[%emt 0:01:52]} 16. Kf1 {[%emt 0:00:06]} Kf8 {[%emt 0:00:54]} 17. Nd6 {[%emt 0:03:10]} Rc7 {[%emt 0:00:09]} 18. Nd2 {[%emt 0:01:57]} Qc3 {[%emt 0:00:25]} 19. N2e4 {[%emt 0:00:08]} Qd3+ {[%emt 0:00:38]} 20. Qxd3 {[%emt 0:01:08]} cxd3 {[%emt 0:00:02]} 21. Nc5 {[%emt 0:00:15]} Ke7 {[%emt 0:02:26]} 22. Nxd3 {[%emt 0:00:49]} f6 {[%emt 0:00:01]} 23. Ke2 {[%emt 0:00:41]} fxe5 {[%emt 0:01:13]} 24. dxe5 {[%emt 0:00:03]} Rf8 {[%emt 0:00:32]} 25. f4 {[%emt 0:01:35]} Rc2+ {[%emt 0:00:13]} 26. Ke3 {[%emt 0:00:01]} a6 {[%emt 0:00:31]} 27. g3 {[%emt 0:00:27]} Ra8 {[%emt 0:00:44]} 28. Rhc1 {[%emt 0:01:18]} Rxh2 {[%emt 0:00:34]} 29. Rc7 {[%emt 0:00:17]} Kd8 {[%emt 0:00:04]} 30. b6 {[%emt 0:00:28]} Bf8 {[%emt 0:00:31]} 31. Nxb7+ {[%emt 0:00:03]} Ke8 {[%emt 0:00:04]} 32. Ndc5 {[%emt 0:00:02]} Rc2 {[%emt 0:01:56]} 33. Nxd7 {[%emt 0:00:22]} Rxc7 {[%emt 0:00:06]} 34. Nf6+ {[%emt 0:00:01]} 1-0

[Event "European Online Club-ch-D 2021"]
[Site "Online"]
[Date "2021.03.27"]
[Round "3.16"]
[White "Skulte, Christopher"]
[Black "Samadov, Read"]
[Result "0-1"]
[ECO "B86"]
[WhiteElo "2055"]
[BlackElo "2332"]
[Annotator "NA"]
[PlyCount "48"]
[EventDate "2021.03.27"]
[EventType "team-tourn"]
[EventCountry "NET"]
[SourceTitle "playchess.com"]
[Source "ChessBase"]
[SourceQuality "1"]
[TimeControl "900+5"]

1. e4 {[%emt 0:00:00]} c5 {[%emt 0:00:03]} 2. Nf3 {[%emt 0:00:04]} d6 {[%emt 0:00:03]} 3. Nc3 {[%emt 0:00:04]} a6 {[%emt 0:00:29]} 4. a4 {[%emt 0:00:04]} Nc6 {[%emt 0:00:10]} 5. Bc4 {[%emt 0:00:34]} Nf6 {[%emt 0:00:20]} 6. O-O {[%emt 0:00:04]} e6 {[%emt 0:00:10]} 7. d4 {[%emt 0:00:23]} cxd4 {[%emt 0:00:08]} 8. Nxd4 {[%emt 0:00:03]} Be7 {[%emt 0:00:03]} 9. Bg5 {[%emt 0:00:35]} O-O {[%emt 0:00:26]} 10. Re1 {[%emt 0:00:46]} Bd7 {[%emt 0:01:13]} 11. Qd2 {[%emt 0:01:35]} Rc8 {[%emt 0:00:20]} 12. Bf1 {[%emt 0:00:07]} Qb6 {[%emt 0:02:15]} 13. Nb3 {[%emt 0:00:29]} Rfd8 {[%emt 0:00:59]} 14. Nd5 {[%emt 0:02:29]} exd5 {[%emt 0:00:47]} 15. exd5 {[%emt 0:00:03]} Ne5 {[%emt 0:00:21]} 16. Nd4 {[%emt 0:00:39]} Nxd5 {[%emt 0:00:36]} 17. Bxe7 {[%emt 0:01:27]} Nxe7 {[%emt 0:00:03]} 18. Re3 {[%emt 0:00:23]} Nf5 {[%emt 0:00:22]} 19. Nxf5 {[%emt 0:00:25]} Bxf5 {[%emt 0:00:02]} 20. Rae1 {[%emt 0:00:09]} Rxc2 {[%emt 0:00:53]} 21. Qd5 {[%emt 0:00:27]} Be6 {[%emt 0:00:13]} 22. Qe4 {[%emt 0:00:10]} Rcc8 {[%emt 0:00:07]} 23. Kh1 {[%emt 0:00:08]} Ng4 {[%emt 0:00:29]} 24. Qf4 {[%emt 0:00:34]} Nxe3 {[%emt 0:00:04]} 0-1

[Event "European Online Club-ch-D 2021"]
[Site "Online"]
[Date "2021.03.27"]
[Round "3.17"]
[White "Roubalik, Jakub"]
[Black "Tokhirjonova, Gulrukhbegim"]
[Result "1-0"]
[ECO "D38"]
[WhiteElo "2391"]
[BlackElo "2362"]
[Annotator "NA"]
[PlyCount "83"]
[EventDate "2021.03.27"]
[EventType "team-tourn"]
[EventCountry "NET"]
[SourceTitle "playchess.com"]
[Source "ChessBase"]
[SourceQuality "1"]
[TimeControl "900+5"]

1. d4 {[%emt 0:00:00]} Nf6 {[%emt 0:00:03]} 2. c4 {[%emt 0:00:13]} e6 {[%emt 0:00:04]} 3. Nf3 {[%emt 0:00:02]} d5 {[%emt 0:00:02]} 4. Nc3 {[%emt 0:00:02]} Bb4 {[%emt 0:00:03]} 5. Qa4+ {[%emt 0:00:29]} Nc6 {[%emt 0:00:03]} 6. Bg5 {[%emt 0:00:20]} Bd7 {[%emt 0:00:12]} 7. Qc2 {[%emt 0:00:09]} h6 {[%emt 0:00:04]} 8. Bxf6 {[%emt 0:00:09]} Qxf6 {[%emt 0:00:03]} 9. e3 {[%emt 0:00:06]} O-O {[%emt 0:00:07]} 10. a3 {[%emt 0:00:18]} Bxc3+ {[%emt 0:00:29]} 11. Qxc3 {[%emt 0:00:04]} Rfe8 {[%emt 0:00:04]} 12. cxd5 {[%emt 0:01:39]} exd5 {[%emt 0:00:03]} 13. Be2 {[%emt 0:00:01]} Rac8 {[%emt 0:00:18]} 14. O-O {[%emt 0:00:21]} Bg4 {[%emt 0:00:10]} 15. Qb3 {[%emt 0:01:36]} Qd6 {[%emt 0:00:25]} 16. Rac1 {[%emt 0:00:27]} Nd8 {[%emt 0:00:10]} 17. Qa4 {[%emt 0:00:11]} Nc6 {[%emt 0:04:01]} 18. Rc5 {[%emt 0:01:28]} Rcd8 {[%emt 0:02:58]} 19. Rfc1 {[%emt 0:00:28]} Qg6 {[%emt 0:01:50]} 20. Qd1 {[%emt 0:01:27]} Rd6 {[%emt 0:00:47]} 21. b4 {[%emt 0:00:23]} a6 {[%emt 0:00:06]} 22. Qd2 {[%emt 0:01:42]} Qf6 {[%emt 0:00:22]} 23. a4 {[%emt 0:00:18]} b6 {[%emt 0:01:07]} 24. R5c2 {[%emt 0:00:41]} Bf5 {[%emt 0:00:03]} 25. Rb2 {[%emt 0:01:35]} a5 {[%emt 0:00:27]} 26. bxa5 {[%emt 0:00:17]} bxa5 {[%emt 0:00:08]} 27. Rb7 {[%emt 0:00:24]} Rc8 {[%emt 0:00:17]} 28. Bb5 {[%emt 0:00:13]} Be4 {[%emt 0:00:32]} 29. Ne1 {[%emt 0:00:03]} Qg6 {[%emt 0:00:14]} 30. Qc3 {[%emt 0:00:32]} Ne7 {[%emt 0:00:11]} 31. Rxc7 {[%emt 0:00:07]} Rdd8 {[%emt 0:00:05]} 32. Qxa5 {[%emt 0:00:11]} Ra8 {[%emt 0:00:26]} 33. Qb4 {[%emt 0:00:12]} Nc8 {[%emt 0:00:40]} 34. Bc6 {[%emt 0:00:46]} Ra6 {[%emt 0:00:28]} 35. Bb7 {[%emt 0:00:11]} Rb6 {[%emt 0:00:08]} 36. Qc5 {[%emt 0:00:04]} Rxb7 {[%emt 0:00:28]} 37. Rxb7 {[%emt 0:00:04]} Nd6 {[%emt 0:00:03]} 38. Rb6 {[%emt 0:00:04]} Bf5 {[%emt 0:00:08]} 39. a5 {[%emt 0:00:13]} Qe6 {[%emt 0:00:08]} 40. a6 {[%emt 0:00:14]} Qe7 {[%emt 0:00:02]} 41. Qb4 {[%emt 0:00:16]} Kh7 {[%emt 0:00:16]} 42. a7 {[%emt 0:00:04]} 1-0